[Event "Titled Tuesday Blitz June 27 Late 2023"]
[White "Glavina, Pablo"]
[Black "reevecanada"]
[WhiteFideId "100234"]
[WhiteElo "2352"]
[BlackElo "2611"]
[Result "0-1"]
[Round "7"]
[TimeControl "180+2"]
[Date "2023.06.27"]
[WhiteClock "0:01:21"]
[BlackClock "0:02:03"]
[Board "106"]

1. c4 {[%clk 0:03:00]}  e5 {[%clk 0:02:57]} 2. Nc3 {[%clk 0:03:00]}  Nf6 {[%clk 0:02:51]} 3. Nf3 {[%clk 0:03:00]}  Nc6 {[%clk 0:02:47]} 4. e4 {[%clk 0:03:01]}  Bc5 {[%clk 0:02:46]} 5. Nxe5 {[%clk 0:03:01]}  Bxf2+ {[%clk 0:02:37]} 6. Kxf2 {[%clk 0:03:02]}  Nxe5 {[%clk 0:02:37]} 7. d4 {[%clk 0:03:03]}  Neg4+ {[%clk 0:02:33]} 8. Kg1 {[%clk 0:03:03]}  d6 {[%clk 0:02:33]} 9. h3 {[%clk 0:03:03]}  Nh6 {[%clk 0:02:33]} 10. Bg5 {[%clk 0:03:03]}  Nhg8 {[%clk 0:02:30]} 11. e5 {[%clk 0:02:52]}  dxe5 {[%clk 0:02:29]} 12. dxe5 {[%clk 0:02:52]}  Qe7 {[%clk 0:02:22]} 13. exf6 {[%clk 0:02:45]}  Qc5+ {[%clk 0:02:21]} 14. Kh2 {[%clk 0:02:43]}  Qxg5 {[%clk 0:02:19]} 15. Qe2+ {[%clk 0:02:42]}  Be6 {[%clk 0:02:18]} 16. Nd5 {[%clk 0:02:37]}  O-O-O {[%clk 0:02:17]} 17. Qf2 {[%clk 0:02:17]}  Nxf6 {[%clk 0:02:13]} 18. Ne7+ {[%clk 0:02:05]}  Kb8 {[%clk 0:02:09]} 19. Be2 {[%clk 0:01:48]}  Qe5+ {[%clk 0:02:06]} 20. g3 {[%clk 0:01:43]}  Rd2 {[%clk 0:02:04]} 21. Rhe1 {[%clk 0:01:21]}  Bxc4 {[%clk 0:02:03]} 0-1


[Site "https://www.chess.com"]

[Event "Titled Tuesday Blitz June 27 Late 2023"]
[White "Kujawski, Adam"]
[Black "Zeynalli, Rashad"]
[WhiteFideId "1100920"]
[BlackFideId "13403320"]
[WhiteElo "2343"]
[BlackElo "2589"]
[Result "0-1"]
[Round "7"]
[TimeControl "180+2"]
[Date "2023.06.27"]
[WhiteClock "0:00:00"]
[BlackClock "0:00:44"]
[Board "108"]

1. e4 {[%clk 0:02:56]}  c6 {[%clk 0:02:04]} 2. d4 {[%clk 0:02:50]}  d5 {[%clk 0:02:03]} 3. f3 {[%clk 0:02:51]}  dxe4 {[%clk 0:02:01]} 4. fxe4 {[%clk 0:02:51]}  e5 {[%clk 0:02:02]} 5. Nf3 {[%clk 0:02:51]}  Be6 {[%clk 0:01:56]} 6. c3 {[%clk 0:02:44]}  Nf6 {[%clk 0:01:51]} 7. Bd3 {[%clk 0:02:43]}  Nbd7 {[%clk 0:01:48]} 8. O-O {[%clk 0:02:42]}  Bd6 {[%clk 0:01:48]} 9. Kh1 {[%clk 0:02:41]}  Qe7 {[%clk 0:01:43]} 10. Bg5 {[%clk 0:02:32]}  h6 {[%clk 0:01:40]} 11. Bh4 {[%clk 0:02:31]}  g5 {[%clk 0:01:33]} 12. Bg3 {[%clk 0:02:29]}  Nh5 {[%clk 0:01:33]} 13. Bxe5 {[%clk 0:02:20]}  Bxe5 {[%clk 0:01:33]} 14. dxe5 {[%clk 0:02:08]}  O-O-O {[%clk 0:01:32]} 15. Qc2 {[%clk 0:00:40]}  Nf4 {[%clk 0:01:23]} 16. Be2 {[%clk 0:00:35]}  Bg4 {[%clk 0:01:03]} 17. Na3 {[%clk 0:00:34]}  Nxe2 {[%clk 0:01:01]} 18. Qxe2 {[%clk 0:00:33]}  Nxe5 {[%clk 0:01:01]} 19. Rad1 {[%clk 0:00:29]}  Qc5 {[%clk 0:01:01]} 20. Rxd8+ {[%clk 0:00:18]}  Rxd8 {[%clk 0:01:00]} 21. Rd1 {[%clk 0:00:19]}  Rxd1+ {[%clk 0:00:57]} 22. Qxd1 {[%clk 0:00:20]}  Qf2 {[%clk 0:00:54]} 23. Qd2 {[%clk 0:00:06]}  Qf1+ {[%clk 0:00:48]} 24. Ng1 {[%clk 0:00:06]}  Nf3 {[%clk 0:00:49]} 25. Qe3 {[%clk 0:00:00]}  Ne1 {[%clk 0:00:44]} 0-1


[Site "https://www.chess.com"]

[Event "Titled Tuesday Blitz June 27 Late 2023"]
[White "Shapiro, Viktor"]
[Black "Andersson, Bjorn 1971"]
[WhiteFideId "4175700"]
[BlackFideId "1702114"]
[WhiteElo "2506"]
[BlackElo "2337"]
[Result "0-1"]
[Round "7"]
[TimeControl "180+2"]
[Date "2023.06.27"]
[WhiteClock "0:00:56"]
[BlackClock "0:01:29"]
[Board "110"]

1. c4 {[%clk 0:02:56]}  c5 {[%clk 0:03:00]} 2. Nc3 {[%clk 0:02:54]}  Nc6 {[%clk 0:03:00]} 3. g3 {[%clk 0:02:54]}  d6 {[%clk 0:02:59]} 4. Bg2 {[%clk 0:02:55]}  Be6 {[%clk 0:03:00]} 5. d3 {[%clk 0:02:53]}  Qc8 {[%clk 0:03:00]} 6. h3 {[%clk 0:02:53]}  g6 {[%clk 0:02:58]} 7. Nf3 {[%clk 0:02:53]}  Bg7 {[%clk 0:02:57]} 8. a3 {[%clk 0:02:51]}  Nf6 {[%clk 0:02:56]} 9. Rb1 {[%clk 0:02:50]}  Bd7 {[%clk 0:02:56]} 10. b4 {[%clk 0:02:48]}  Rb8 {[%clk 0:02:50]} 11. Bd2 {[%clk 0:02:40]}  h5 {[%clk 0:02:45]} 12. b5 {[%clk 0:02:35]}  Nd8 {[%clk 0:02:26]} 13. Ng5 {[%clk 0:02:29]}  Ne6 {[%clk 0:02:25]} 14. h4 {[%clk 0:02:19]}  Nxg5 {[%clk 0:02:16]} 15. hxg5 {[%clk 0:02:17]}  Ng4 {[%clk 0:02:14]} 16. Ne4 {[%clk 0:02:13]}  Bd4 {[%clk 0:02:09]} 17. e3 {[%clk 0:02:12]}  Be5 {[%clk 0:02:06]} 18. f3 {[%clk 0:02:00]}  f5 {[%clk 0:02:05]} 19. gxf6 {[%clk 0:01:54]}  Nxf6 {[%clk 0:02:03]} 20. f4 {[%clk 0:01:53]}  Nxe4 {[%clk 0:02:02]} 21. Bxe4 {[%clk 0:01:53]}  Bf6 {[%clk 0:01:57]} 22. Bxg6+ {[%clk 0:01:53]}  Kd8 {[%clk 0:01:57]} 23. Rxh5 {[%clk 0:01:51]}  Rg8 {[%clk 0:01:55]} 24. f5 {[%clk 0:01:48]}  Kc7 {[%clk 0:01:45]} 25. Rh7 {[%clk 0:01:34]}  Bxf5 {[%clk 0:01:37]} 26. Bxf5 {[%clk 0:01:26]}  Qxf5 {[%clk 0:01:36]} 27. Qh5 {[%clk 0:01:16]}  Qxd3 {[%clk 0:01:32]} 28. Rf7 {[%clk 0:00:56]}  Qxb1+ {[%clk 0:01:29]} 0-1


[Site "https://www.chess.com"]

[Event "Titled Tuesday Blitz June 27 Late 2023"]
[White "Spichkin, Alexander"]
[Black "Bilan, Danila"]
[WhiteFideId "4144074"]
[BlackFideId "24161918"]
[WhiteElo "2314"]
[BlackElo "2500"]
[Result "0-1"]
[Round "7"]
[TimeControl "180+2"]
[Date "2023.06.27"]
[WhiteClock "0:02:36"]
[BlackClock "0:01:23"]
[Board "112"]

1. f4 {[%clk 0:02:59]}  e5 {[%clk 0:02:53]} 2. e4 {[%clk 0:02:58]}  d5 {[%clk 0:02:49]} 3. exd5 {[%clk 0:02:57]}  exf4 {[%clk 0:02:44]} 4. Nc3 {[%clk 0:02:55]}  Nf6 {[%clk 0:02:42]} 5. Bb5+ {[%clk 0:02:54]}  Bd7 {[%clk 0:02:32]} 6. Qe2+ {[%clk 0:02:52]}  Be7 {[%clk 0:02:28]} 7. d4 {[%clk 0:02:52]}  O-O {[%clk 0:02:17]} 8. Bxf4 {[%clk 0:02:53]}  Bb4 {[%clk 0:02:16]} 9. Nf3 {[%clk 0:02:44]}  Nxd5 {[%clk 0:02:02]} 10. Bd2 {[%clk 0:02:42]}  Re8 {[%clk 0:01:53]} 11. Ne5 {[%clk 0:02:42]}  Bxc3 {[%clk 0:01:36]} 12. Qd1 {[%clk 0:02:36]}  Bxd4 {[%clk 0:01:23]} 0-1


[Site "https://www.chess.com"]

[Event "Titled Tuesday Blitz June 27 Late 2023"]
[White "Graif, William"]
[Black "Zampronha, Wladimir Camilo"]
[WhiteFideId "2609835"]
[BlackFideId "2103087"]
[WhiteElo "2495"]
[BlackElo "2292"]
[Result "1-0"]
[Round "7"]
[TimeControl "180+2"]
[Date "2023.06.27"]
[WhiteClock "0:00:11"]
[BlackClock "0:00:58"]
[Board "113"]

1. e4 {[%clk 0:02:53]}  c5 {[%clk 0:02:59]} 2. Nc3 {[%clk 0:02:51]}  Nc6 {[%clk 0:02:58]} 3. Bb5 {[%clk 0:02:49]}  Nd4 {[%clk 0:02:57]} 4. Nf3 {[%clk 0:02:47]}  e6 {[%clk 0:02:56]} 5. O-O {[%clk 0:02:47]}  Nxb5 {[%clk 0:02:54]} 6. Nxb5 {[%clk 0:02:48]}  a6 {[%clk 0:02:49]} 7. Nc3 {[%clk 0:02:45]}  d6 {[%clk 0:02:50]} 8. d4 {[%clk 0:02:43]}  cxd4 {[%clk 0:02:50]} 9. Qxd4 {[%clk 0:02:43]}  Nf6 {[%clk 0:02:46]} 10. Bg5 {[%clk 0:02:39]}  Be7 {[%clk 0:02:44]} 11. Rad1 {[%clk 0:02:34]}  Qc7 {[%clk 0:02:42]} 12. Rfe1 {[%clk 0:02:02]}  e5 {[%clk 0:02:26]} 13. Qd3 {[%clk 0:01:51]}  Be6 {[%clk 0:02:26]} 14. Bxf6 {[%clk 0:01:44]}  gxf6 {[%clk 0:02:23]} 15. Nd5 {[%clk 0:01:28]}  Qa5 {[%clk 0:02:18]} 16. Nxe7 {[%clk 0:00:41]}  Kxe7 {[%clk 0:02:18]} 17. Qxd6+ {[%clk 0:00:42]}  Ke8 {[%clk 0:02:19]} 18. a3 {[%clk 0:00:36]}  Rd8 {[%clk 0:02:15]} 19. Qxd8+ {[%clk 0:00:33]}  Qxd8 {[%clk 0:02:14]} 20. Rxd8+ {[%clk 0:00:34]}  Kxd8 {[%clk 0:02:15]} 21. Rd1+ {[%clk 0:00:35]}  Kc7 {[%clk 0:02:14]} 22. Kf1 {[%clk 0:00:33]}  Rg8 {[%clk 0:02:09]} 23. Nd2 {[%clk 0:00:18]}  Rd8 {[%clk 0:02:03]} 24. f3 {[%clk 0:00:18]}  b5 {[%clk 0:01:55]} 25. Ke1 {[%clk 0:00:17]}  Kb7 {[%clk 0:01:52]} 26. Nf1 {[%clk 0:00:17]}  Rc8 {[%clk 0:01:53]} 27. Ne3 {[%clk 0:00:17]}  a5 {[%clk 0:01:42]} 28. c3 {[%clk 0:00:17]}  b4 {[%clk 0:01:40]} 29. cxb4 {[%clk 0:00:15]}  axb4 {[%clk 0:01:41]} 30. axb4 {[%clk 0:00:15]}  Kb6 {[%clk 0:01:38]} 31. Nd5+ {[%clk 0:00:14]}  Bxd5 {[%clk 0:01:38]} 32. Rxd5 {[%clk 0:00:14]}  Rc2 {[%clk 0:01:39]} 33. Rd2 {[%clk 0:00:14]}  Rc1+ {[%clk 0:01:35]} 34. Ke2 {[%clk 0:00:13]}  Rg1 {[%clk 0:01:35]} 35. Ke3 {[%clk 0:00:13]}  Kb5 {[%clk 0:01:34]} 36. Kf2 {[%clk 0:00:13]}  Rb1 {[%clk 0:01:33]} 37. Rd7 {[%clk 0:00:11]}  Rxb2+ {[%clk 0:01:32]} 38. Kg3 {[%clk 0:00:11]}  Rxb4 {[%clk 0:01:29]} 39. Rxf7 {[%clk 0:00:11]}  Kc5 {[%clk 0:01:29]} 40. Rxf6 {[%clk 0:00:12]}  Kd4 {[%clk 0:01:29]} 41. Rf7 {[%clk 0:00:11]}  h6 {[%clk 0:01:28]} 42. Rf6 {[%clk 0:00:11]}  h5 {[%clk 0:01:29]} 43. Rf5 {[%clk 0:00:11]}  Rb8 {[%clk 0:01:28]} 44. Rxh5 {[%clk 0:00:11]}  Rg8+ {[%clk 0:01:28]} 45. Kh3 {[%clk 0:00:11]}  Rf8 {[%clk 0:01:21]} 46. Rf5 {[%clk 0:00:10]}  Rh8+ {[%clk 0:01:20]} 47. Kg3 {[%clk 0:00:10]}  Rg8+ {[%clk 0:01:20]} 48. Kf2 {[%clk 0:00:10]}  Ra8 {[%clk 0:01:15]} 49. g4 {[%clk 0:00:10]}  Rh8 {[%clk 0:01:12]} 50. Kg3 {[%clk 0:00:11]}  Rh7 {[%clk 0:00:58]} 51. h4 {[%clk 0:00:11]} 1-0


[Site "https://www.chess.com"]

[Event "Titled Tuesday Blitz June 27 Late 2023"]
[White "Zavortink, Matt"]
[Black "Vaglio Munoz, Jaime"]
[WhiteFideId "2034263"]
[BlackFideId "6500145"]
[WhiteElo "2469"]
[BlackElo "2286"]
[Result "1-0"]
[Round "7"]
[TimeControl "180+2"]
[Date "2023.06.27"]
[WhiteClock "0:00:16"]
[BlackClock "0:00:45"]
[Board "115"]

1. Nf3 {[%clk 0:03:00]}  b5 {[%clk 0:02:57]} 2. g3 {[%clk 0:02:58]}  Bb7 {[%clk 0:02:56]} 3. Bg2 {[%clk 0:02:58]}  g6 {[%clk 0:02:56]} 4. O-O {[%clk 0:02:57]}  Bg7 {[%clk 0:02:56]} 5. a4 {[%clk 0:02:50]}  b4 {[%clk 0:02:55]} 6. d3 {[%clk 0:02:50]}  a5 {[%clk 0:02:48]} 7. Nbd2 {[%clk 0:02:48]}  Nf6 {[%clk 0:02:47]} 8. e4 {[%clk 0:02:46]}  d6 {[%clk 0:02:47]} 9. Nc4 {[%clk 0:02:42]}  O-O {[%clk 0:02:45]} 10. Rb1 {[%clk 0:02:24]}  Nbd7 {[%clk 0:02:44]} 11. b3 {[%clk 0:02:21]}  Nc5 {[%clk 0:02:43]} 12. Bb2 {[%clk 0:02:19]}  e5 {[%clk 0:02:43]} 13. Nh4 {[%clk 0:02:01]}  Qd7 {[%clk 0:02:40]} 14. f4 {[%clk 0:01:58]}  Ng4 {[%clk 0:02:37]} 15. Qe2 {[%clk 0:01:53]}  exf4 {[%clk 0:02:29]} 16. Bxg7 {[%clk 0:01:49]}  Kxg7 {[%clk 0:02:30]} 17. gxf4 {[%clk 0:01:42]}  Rae8 {[%clk 0:02:27]} 18. f5 {[%clk 0:01:34]}  Nf6 {[%clk 0:02:20]} 19. Nxa5 {[%clk 0:01:31]}  Ba8 {[%clk 0:02:15]} 20. Qd2 {[%clk 0:01:28]}  d5 {[%clk 0:02:07]} 21. Qxb4 {[%clk 0:01:21]}  Na6 {[%clk 0:01:59]} 22. Qb5 {[%clk 0:01:10]}  Qxb5 {[%clk 0:01:55]} 23. axb5 {[%clk 0:01:11]}  dxe4 {[%clk 0:01:55]} 24. bxa6 {[%clk 0:01:10]}  exd3 {[%clk 0:01:46]} 25. cxd3 {[%clk 0:01:06]}  Bxg2 {[%clk 0:01:43]} 26. Nxg2 {[%clk 0:00:59]}  Ra8 {[%clk 0:01:42]} 27. fxg6 {[%clk 0:00:53]}  hxg6 {[%clk 0:01:38]} 28. Nc4 {[%clk 0:00:49]}  Rxa6 {[%clk 0:01:38]} 29. Nf4 {[%clk 0:00:46]}  Rd8 {[%clk 0:01:37]} 30. Rf2 {[%clk 0:00:44]}  g5 {[%clk 0:01:33]} 31. Nh3 {[%clk 0:00:42]}  Kg6 {[%clk 0:01:31]} 32. Rg2 {[%clk 0:00:40]}  Nh7 {[%clk 0:01:30]} 33. Rd1 {[%clk 0:00:34]}  f6 {[%clk 0:01:30]} 34. d4 {[%clk 0:00:31]}  Rb8 {[%clk 0:01:27]} 35. Rg3 {[%clk 0:00:30]}  Nf8 {[%clk 0:01:25]} 36. Re3 {[%clk 0:00:28]}  Ra2 {[%clk 0:01:23]} 37. Rd2 {[%clk 0:00:27]}  Ra1+ {[%clk 0:01:23]} 38. Kg2 {[%clk 0:00:27]}  Rba8 {[%clk 0:01:21]} 39. Rde2 {[%clk 0:00:26]}  Rb1 {[%clk 0:01:19]} 40. Re1 {[%clk 0:00:25]}  Ra2+ {[%clk 0:01:16]} 41. Nf2 {[%clk 0:00:25]}  Rxe1 {[%clk 0:01:14]} 42. Rxe1 {[%clk 0:00:25]}  Nd7 {[%clk 0:01:11]} 43. Re7 {[%clk 0:00:24]}  Nf8 {[%clk 0:01:08]} 44. Rxc7 {[%clk 0:00:24]}  Ra1 {[%clk 0:01:06]} 45. b4 {[%clk 0:00:23]}  Ne6 {[%clk 0:01:06]} 46. Rd7 {[%clk 0:00:20]}  Rb1 {[%clk 0:01:05]} 47. Rd6 {[%clk 0:00:17]}  Nf4+ {[%clk 0:01:05]} 48. Kf3 {[%clk 0:00:17]}  Rb3+ {[%clk 0:01:04]} 49. Ne3 {[%clk 0:00:17]}  Rxb4 {[%clk 0:01:04]} 50. Ne4 {[%clk 0:00:17]}  Nh5 {[%clk 0:01:01]} 51. d5 {[%clk 0:00:15]}  Kf7 {[%clk 0:00:49]} 52. Rd7+ {[%clk 0:00:14]}  Kg6 {[%clk 0:00:48]} 53. Rd6 {[%clk 0:00:15]}  Kf7 {[%clk 0:00:48]} 54. Ng4 {[%clk 0:00:14]}  Rb3+ {[%clk 0:00:48]} 55. Kf2 {[%clk 0:00:13]}  f5 {[%clk 0:00:48]} 56. Nxg5+ {[%clk 0:00:13]}  Ke7 {[%clk 0:00:48]} 57. Re6+ {[%clk 0:00:13]}  Kd7 {[%clk 0:00:48]} 58. Nf6+ {[%clk 0:00:12]}  Kc8 {[%clk 0:00:47]} 59. Nxh5 {[%clk 0:00:12]}  Rb2+ {[%clk 0:00:46]} 60. Kf3 {[%clk 0:00:13]}  Rxh2 {[%clk 0:00:46]} 61. Nf6 {[%clk 0:00:13]}  Rd2 {[%clk 0:00:45]} 62. Kf4 {[%clk 0:00:12]}  Rd4+ {[%clk 0:00:43]} 63. Kxf5 {[%clk 0:00:12]}  Kd8 {[%clk 0:00:42]} 64. Rd6+ {[%clk 0:00:11]}  Kc7 {[%clk 0:00:41]} 65. Ne6+ {[%clk 0:00:09]}  Kc8 {[%clk 0:00:40]} 66. Nxd4 {[%clk 0:00:10]}  Kc7 {[%clk 0:00:40]} 67. Ke5 {[%clk 0:00:11]}  Kb7 {[%clk 0:00:39]} 68. Ke6 {[%clk 0:00:11]}  Kc7 {[%clk 0:00:39]} 69. Ng4 {[%clk 0:00:12]}  Kc8 {[%clk 0:00:39]} 70. Nh2 {[%clk 0:00:13]}  Kc7 {[%clk 0:00:40]} 71. Ndf3 {[%clk 0:00:14]}  Kb7 {[%clk 0:00:41]} 72. Ng1 {[%clk 0:00:14]}  Kc7 {[%clk 0:00:42]} 73. Rc6+ {[%clk 0:00:14]}  Kb7 {[%clk 0:00:42]} 74. Kd7 {[%clk 0:00:14]}  Kb8 {[%clk 0:00:43]} 75. Rb6+ {[%clk 0:00:14]}  Ka7 {[%clk 0:00:43]} 76. Rb2 {[%clk 0:00:15]}  Ka8 {[%clk 0:00:44]} 77. Kc7 {[%clk 0:00:15]}  Ka7 {[%clk 0:00:45]} 78. Ra2# {[%clk 0:00:16]} 1-0


[Site "https://www.chess.com"]

[Event "Titled Tuesday Blitz June 27 Late 2023"]
[White "Rakitic2010"]
[Black "Urbina Perez, Juan Antonio"]
[BlackFideId "2217368"]
[WhiteElo "2283"]
[BlackElo "2462"]
[Result "0-1"]
[Round "7"]
[TimeControl "180+2"]
[Date "2023.06.27"]
[WhiteClock "0:01:22"]
[BlackClock "0:01:07"]
[Board "116"]

1. e4 {[%clk 0:02:55]}  c5 {[%clk 0:02:55]} 2. a3 {[%clk 0:02:55]}  g6 {[%clk 0:02:54]} 3. Nf3 {[%clk 0:02:54]}  Bg7 {[%clk 0:02:54]} 4. c3 {[%clk 0:02:53]}  Nc6 {[%clk 0:02:53]} 5. d4 {[%clk 0:02:53]}  cxd4 {[%clk 0:02:53]} 6. cxd4 {[%clk 0:02:54]}  d5 {[%clk 0:02:53]} 7. e5 {[%clk 0:02:55]}  Bg4 {[%clk 0:02:49]} 8. Nc3 {[%clk 0:02:53]}  e6 {[%clk 0:02:43]} 9. Be2 {[%clk 0:02:49]}  Qb6 {[%clk 0:02:42]} 10. Na4 {[%clk 0:02:45]}  Qd8 {[%clk 0:02:30]} 11. O-O {[%clk 0:02:45]}  Nge7 {[%clk 0:02:28]} 12. h3 {[%clk 0:02:44]}  Bxf3 {[%clk 0:02:28]} 13. Bxf3 {[%clk 0:02:45]}  Nf5 {[%clk 0:02:27]} 14. Be3 {[%clk 0:02:44]}  O-O {[%clk 0:02:24]} 15. g4 {[%clk 0:02:42]}  Nxe3 {[%clk 0:02:23]} 16. fxe3 {[%clk 0:02:43]}  Qg5 {[%clk 0:02:21]} 17. Qd3 {[%clk 0:02:42]}  f6 {[%clk 0:02:11]} 18. Nc5 {[%clk 0:02:38]}  Rae8 {[%clk 0:02:10]} 19. exf6 {[%clk 0:02:36]}  Rxf6 {[%clk 0:02:08]} 20. Bg2 {[%clk 0:02:30]}  Rxf1+ {[%clk 0:02:05]} 21. Rxf1 {[%clk 0:02:31]}  b6 {[%clk 0:02:05]} 22. Qb5 {[%clk 0:02:14]}  Qxe3+ {[%clk 0:01:47]} 23. Kh1 {[%clk 0:02:14]}  bxc5 {[%clk 0:01:45]} 24. Qxc6 {[%clk 0:02:13]}  Rf8 {[%clk 0:01:45]} 25. Rxf8+ {[%clk 0:02:07]}  Bxf8 {[%clk 0:01:46]} 26. Qe8 {[%clk 0:02:00]}  cxd4 {[%clk 0:01:32]} 27. h4 {[%clk 0:01:49]}  Qe1+ {[%clk 0:01:29]} 28. Kh2 {[%clk 0:01:49]}  Qxh4+ {[%clk 0:01:30]} 29. Kg1 {[%clk 0:01:49]}  Qe1+ {[%clk 0:01:29]} 30. Kh2 {[%clk 0:01:48]}  Qe5+ {[%clk 0:01:29]} 31. Kh3 {[%clk 0:01:47]}  d3 {[%clk 0:01:28]} 32. Qb5 {[%clk 0:01:41]}  Bd6 {[%clk 0:01:26]} 33. Qe8+ {[%clk 0:01:36]}  Kg7 {[%clk 0:01:25]} 34. Qd7+ {[%clk 0:01:36]}  Kh6 {[%clk 0:01:25]} 35. g5+ {[%clk 0:01:36]}  Kxg5 {[%clk 0:01:22]} 36. Qd8+ {[%clk 0:01:34]}  Kh6 {[%clk 0:01:18]} 37. Qh4+ {[%clk 0:01:29]}  Kg7 {[%clk 0:01:18]} 38. Bf3 {[%clk 0:01:24]}  Qh2+ {[%clk 0:01:07]} 39. Kg4 {[%clk 0:01:23]}  Qf4+ {[%clk 0:01:07]} 40. Kh3 {[%clk 0:01:22]}  Qxf3+ {[%clk 0:01:07]} 0-1


[Site "https://www.chess.com"]

[Event "Titled Tuesday Blitz June 27 Late 2023"]
[White "Ward, Ieuan C"]
[Black "Kovalevsky, Stanislav"]
[WhiteFideId "406627"]
[BlackFideId "13508598"]
[WhiteElo "2280"]
[BlackElo "2461"]
[Result "1-0"]
[Round "7"]
[TimeControl "180+2"]
[Date "2023.06.27"]
[WhiteClock "0:00:06"]
[BlackClock "0:00:02"]
[Board "117"]

1. d4 {[%clk 0:03:00]}  Nf6 {[%clk 0:02:52]} 2. c4 {[%clk 0:03:00]}  e6 {[%clk 0:02:53]} 3. Nf3 {[%clk 0:02:58]}  b6 {[%clk 0:02:52]} 4. g3 {[%clk 0:02:57]}  Bb7 {[%clk 0:02:52]} 5. Bg2 {[%clk 0:02:57]}  d5 {[%clk 0:02:52]} 6. Nc3 {[%clk 0:02:57]}  Nbd7 {[%clk 0:02:51]} 7. O-O {[%clk 0:02:54]}  a6 {[%clk 0:02:46]} 8. Ne5 {[%clk 0:02:43]}  Be7 {[%clk 0:02:30]} 9. cxd5 {[%clk 0:02:42]}  exd5 {[%clk 0:02:29]} 10. Bf4 {[%clk 0:02:35]}  O-O {[%clk 0:02:26]} 11. Rc1 {[%clk 0:02:34]}  Re8 {[%clk 0:02:19]} 12. Nxd7 {[%clk 0:02:27]}  Qxd7 {[%clk 0:02:19]} 13. Bxc7 {[%clk 0:02:14]}  Qxc7 {[%clk 0:02:07]} 14. Nxd5 {[%clk 0:02:13]}  Qb8 {[%clk 0:02:02]} 15. Nc7 {[%clk 0:02:05]}  Bxg2 {[%clk 0:01:59]} 16. Kxg2 {[%clk 0:02:04]}  Rd8 {[%clk 0:01:44]} 17. Nxa8 {[%clk 0:02:01]}  Qxa8+ {[%clk 0:01:45]} 18. Kg1 {[%clk 0:01:57]}  Ng4 {[%clk 0:01:32]} 19. h3 {[%clk 0:01:49]}  Nh6 {[%clk 0:01:14]} 20. e3 {[%clk 0:01:28]}  Qe4 {[%clk 0:01:06]} 21. Rc3 {[%clk 0:01:18]}  Nf5 {[%clk 0:00:59]} 22. Qg4 {[%clk 0:01:16]}  Qe6 {[%clk 0:00:44]} 23. Rfc1 {[%clk 0:01:12]}  g6 {[%clk 0:00:43]} 24. a3 {[%clk 0:01:09]}  h5 {[%clk 0:00:40]} 25. Qf3 {[%clk 0:01:07]}  Rd6 {[%clk 0:00:28]} 26. Qa8+ {[%clk 0:00:43]}  Kh7 {[%clk 0:00:24]} 27. Qxa6 {[%clk 0:00:41]}  Qe4 {[%clk 0:00:15]} 28. Qf1 {[%clk 0:00:38]}  Bg5 {[%clk 0:00:14]} 29. Qg2 {[%clk 0:00:37]}  Qe6 {[%clk 0:00:12]} 30. Qf3 {[%clk 0:00:23]}  h4 {[%clk 0:00:08]} 31. g4 {[%clk 0:00:21]}  Ne7 {[%clk 0:00:08]} 32. Rc7 {[%clk 0:00:18]}  Kg7 {[%clk 0:00:08]} 33. R1c2 {[%clk 0:00:14]}  Nd5 {[%clk 0:00:08]} 34. Rc8 {[%clk 0:00:12]}  Nxe3 {[%clk 0:00:06]} 35. fxe3 {[%clk 0:00:11]}  Bxe3+ {[%clk 0:00:07]} 36. Kg2 {[%clk 0:00:12]}  Rxd4 {[%clk 0:00:07]} 37. R8c6 {[%clk 0:00:09]}  Qe5 {[%clk 0:00:07]} 38. Re2 {[%clk 0:00:08]}  Rd2 {[%clk 0:00:06]} 39. Rxd2 {[%clk 0:00:06]}  Bxd2 {[%clk 0:00:07]} 40. Rc2 {[%clk 0:00:06]}  Be3 {[%clk 0:00:07]} 41. Re2 {[%clk 0:00:06]}  Qd4 {[%clk 0:00:06]} 42. Qxe3 {[%clk 0:00:06]}  Qd5+ {[%clk 0:00:06]} 43. Qe4 {[%clk 0:00:06]}  Qc5 {[%clk 0:00:02]} 44. Qe5+ {[%clk 0:00:06]} 1-0


[Site "https://www.chess.com"]